bitfinex-derivatives/quotes_ETHF0:USTF0_20240923
["timestamp","ask_amount","ask_price","bid_price","bid_amount"]
[1727051644371,3.2078,2573.2,2573.0,0.38858]
[1727051645678,3.2078,2573.2,2573.1,0.38857]
[1727051645974,0.97104,2574.2,2573.4,0.38851]
[1727051645975,4.17886,2574.2,2573.4,0.38851]
[1727051646171,3.2078,2573.9,2573.1,2.94]
[1727051646368,0.7531,2574.1,2573.2,0.38856]
[1727051646369,3.5963,2573.6,2573.2,0.38856]
[1727051646569,3.2078,2573.6,2573.1,3.32857]
[1727051646773,3.2078,2573.6,2573.1,2.94]
[1727051647077,0.38852,2573.5,2573.1,3.32856]
[1727051647467,0.97129,2573.5,2572.6,3.2078]
[1727051647667,0.38861,2572.9,2572.6,3.2078]
[1727051647880,3.5964,2573.0,2572.6,0.38865]
[1727051648069,3.2078,2573.0,2572.3,3.2078]
[1727051648378,0.38865,2572.6,2572.2,3.5965]
[1727051648570,0.38865,2572.6,2572.0,2.94]
[1727051648571,3.2078,2572.7,2572.1,3.2078]
[1727051648971,3.2078,2572.7,2572.6,0.38865]
[1727051649174,3.59639,2573.0,2572.6,0.38865]
[1727051649377,3.2078,2573.0,2572.4,6.1478]
[1727051649567,3.2078,2573.0,2572.9,0.3886]
[1727051650375,3.2078,2573.0,2572.8,0.38861]
[1727051650583,3.5964,2573.0,2572.6,0.38865]
[1727051650878,3.5964,2573.0,2572.4,6.1478]
[1727051650879,3.2078,2573.0,2572.4,6.1478]
[1727051651078,3.2078,2573.0,2572.9,0.3886]
[1727051651279,0.3752,2573.2,2573.0,0.38858]
[1727051651584,0.76376,2573.2,2572.9,0.3886]
[1727051651879,0.3752,2573.2,2572.9,0.3886]
[1727051653381,0.76376,2573.2,2572.9,0.3886]
[1727051653582,0.3886,2572.9,2572.6,0.38864]
[1727051653777,0.3886,2572.9,2572.5,3.59645]
[1727051653983,0.3886,2572.9,2572.5,0.38865]
[1727051654173,3.2078,2573.1,2572.6,0.38864]
[1727051654374,3.59638,2573.1,2572.7,0.38863]
[1727051654784,0.38859,2573.0,2572.6,0.38864]
[1727051654979,0.38861,2572.9,2572.6,0.38864]
[1727051655178,0.3886,2573.0,2572.4,6.1478]
[1727051655679,0.38861,2572.9,2572.6,0.38864]
[1727051655877,0.38861,2572.9,2572.4,6.1478]
[1727051656070,0.38861,2572.9,2572.6,0.38864]
[1727051656474,0.3886,2573.0,2572.7,0.38863]
[1727051656680,0.38861,2572.9,2572.6,0.38864]
[1727051658097,3.2078,2573.1,2572.7,0.38862]
[1727051658383,3.2078,2573.1,2572.8,2.94]
[1727051658587,3.2078,2573.1,2572.9,0.38859]
[1727051658792,3.2078,2573.1,2573.0,0.38859]
[1727051658992,0.3752,2573.2,2573.1,0.38857]
[1727051659676,0.3752,2573.2,2573.0,0.38858]
[1727051659978,3.2078,2573.1,2572.6,0.38864]
[1727051660177,0.38862,2572.8,2572.5,0.38865]
[1727051660483,1.34662,2573.2,2572.2,0.3887]
[1727051660484,3.2078,2572.7,2572.2,0.3887]
[1727051660683,0.38866,2572.6,2572.0,8.5468]
[1727051660880,0.77276,2572.5,2572.0,8.5468]
[1727051661181,0.77276,2572.5,2572.2,0.3887]
[1727051661379,0.3841,2572.5,2572.4,0.38868]
[1727051661576,3.5964,2573.0,2572.6,0.38865]
[1727051661781,3.9805,2573.0,2572.7,0.38863]
[1727051661984,3.5919,2573.0,2572.3,3.2078]
[1727051662183,0.38863,2572.8,2572.5,0.38866]
[1727051662583,0.38863,2572.7,2572.5,0.38866]
[1727051663083,4.5634,2573.0,2572.1,2.94]
[1727051663284,4.5634,2573.0,2572.4,0.38866]
[1727051663489,0.38863,2572.8,2572.1,2.94]
[1727051663887,0.38867,2572.5,2572.2,0.3887]
[1727051664092,0.3887,2572.3,2572.0,0.38873]
[1727051664398,0.3887,2572.3,2571.9,0.38875]
[1727051664399,0.76702,2572.2,2571.9,0.38875]
[1727051665091,0.76702,2572.2,2572.0,0.38874]
[1727051665390,0.76702,2572.2,2571.9,0.38874]
[1727051665694,0.38872,2572.1,2571.7,6.1478]
[1727051665895,0.76702,2572.2,2571.9,0.38875]
[1727051666186,0.3783,2572.2,2571.7,3.2078]
[1727051666391,0.3783,2572.2,2571.3,2.94]
[1727051666592,0.3783,2572.2,2571.7,0.38878]
[1727051666593,0.38875,2572.0,2571.7,0.38878]
[1727051666893,0.38876,2571.9,2571.6,0.38879]
[1727051667082,0.38877,2571.8,2571.5,0.3888]
[1727051667588,0.38877,2571.8,2571.3,2.94]
[1727051667788,0.38877,2571.8,2571.5,0.38881]
[1727051668189,0.38875,2572.0,2571.7,0.38878]
[1727051668391,0.38875,2572.0,2571.3,2.94]
[1727051668392,3.2078,2572.0,2571.3,2.94]
[1727051668591,0.76702,2572.2,2572.1,0.38872]
[1727051668592,0.3783,2572.2,2572.1,0.38872]
[1727051669487,3.2078,2572.4,2572.3,0.38869]
[1727051669993,3.2078,2572.4,2572.2,0.3887]
[1727051670691,3.59648,2572.4,2572.2,0.3887]
[1727051671195,0.3969,2572.6,2572.1,0.97182]
[1727051671490,0.97136,2573.4,2572.8,0.38861]
[1727051671491,3.5779,2573.0,2572.8,0.38861]
[1727051671886,0.8029,2573.3,2572.8,2.94]
[1727051672287,0.3976,2573.3,2573.1,0.38856]
[1727051672497,0.3976,2573.3,2572.9,0.3886]
[1727051672498,0.78615,2573.3,2572.9,0.3886]
[1727051672789,0.3976,2573.3,2572.8,2.94]
[1727051672991,0.3976,2573.3,2572.7,0.38863]
[1727051673189,0.38856,2573.2,2572.7,0.38863]
[1727051673390,0.38856,2573.2,2572.8,0.38862]
[1727051673590,0.3976,2573.3,2572.9,0.38859]
[1727051673791,0.78615,2573.3,2572.8,0.38861]
[1727051674201,0.3976,2573.3,2572.5,0.9856982]
[1727051674517,0.38858,2573.1,2572.6,0.38864]
[1727051674689,3.59638,2573.1,2572.6,0.38864]
[1727051674902,0.391,2573.0,2572.4,12.4734982]
[1727051675089,0.3886,2572.9,2572.4,6.53647]
[1727051675294,0.38862,2572.8,2572.4,2.94]
[1727051675600,0.391,2573.0,2572.4,3.9256982]
[1727051675988,0.391,2573.0,2572.7,0.38863]
[1727051676693,0.391,2573.0,2572.6,0.38864]
[1727051676900,0.391,2573.0,2572.7,0.38863]
[1727051677104,0.391,2573.0,2572.6,0.38864]
[1727051677105,0.77959,2573.0,2572.6,0.38864]
[1727051677796,0.391,2573.0,2572.7,0.38863]
[1727051678194,0.391,2573.0,2572.5,0.9856982]
[1727051678593,0.38861,2572.9,2572.5,1.3743582]
[1727051679795,0.391,2573.0,2572.5,0.9856982]
[1727051680001,0.38868,2572.4,2572.3,0.9856982]
[1727051680195,0.38869,2572.3,2572.1,0.9856982]
[1727051680505,1.1659,2572.3,2572.0,0.9856982]
[1727051681019,0.7772,2572.3,2572.0,1.3744382]
[1727051681203,0.7772,2572.3,2572.2,0.38871]
[1727051681405,0.3781,2572.3,2572.2,0.38871]
[1727051681606,3.2078,2572.4,2572.3,0.38869]
[1727051681996,3.2078,2572.4,2572.3,4.27589]
[1727051682190,0.3847,2572.8,2572.4,0.38867]
[1727051682191,3.98113,2572.8,2572.4,0.38867]
[1727051682597,3.5925,2572.8,2572.5,0.38866]
[1727051683106,3.5925,2572.8,2572.6,0.38865]
[1727051683496,3.5925,2572.8,2572.5,0.9856982]
[1727051683696,3.5925,2572.8,2572.3,5.72868]
[1727051683697,3.5925,2572.8,2572.3,6.3256982]
[1727051683890,3.2078,2572.4,2572.2,0.9856982]
[1727051684096,0.7731,2572.3,2572.1,0.9856982]
[1727051684321,0.3844,2572.3,2572.0,0.9856982]
[1727051684507,0.7731,2572.3,2572.0,0.9856982]
[1727051685098,0.7731,2572.3,2572.0,1.3744382]
[1727051685403,0.3844,2572.3,2572.0,1.3744382]
[1727051685598,0.3844,2572.3,2572.1,0.38872]
[1727051685804,0.3844,2572.3,2572.0,0.9856982]
[1727051685805,0.3844,2572.3,2572.0,1.3744282]
[1727051686406,0.3844,2572.3,2572.1,0.38872]
[1727051686603,0.3844,2572.3,2572.0,0.9856982]
[1727051686804,0.77309,2572.3,2572.0,1.3744282]
[1727051687102,3.2078,2572.4,2572.3,0.38869]
[1727051687303,3.2078,2572.4,2572.3,1.3743882]
[1727051687509,3.2078,2572.8,2572.7,0.38863]
[1727051688414,0.4065,2573.0,2572.7,0.38863]
[1727051688600,0.79509,2573.0,2572.7,0.38863]
[1727051689105,0.4065,2573.0,2572.8,0.38862]
[1727051689598,0.78468,2573.1,2572.6,3.62626486]
[1727051689599,0.3961,2573.1,2573.0,0.38859]
[1727051690410,3.579,2573.3,2573.1,0.38857]
[1727051691213,3.579,2573.3,2573.0,0.38858]
[1727051691409,0.4019,2573.5,2573.3,0.38854]
[1727051691705,0.4019,2573.5,2572.9,3.62626486]
[1727051691706,0.38853,2573.4,2573.1,0.38857]
[1727051691911,0.4019,2573.5,2572.9,3.62626486]
[1727051692208,0.38854,2573.4,2573.0,0.38858]
[1727051693406,0.38854,2573.4,2573.0,1.40484486]
[1727051693709,0.79042,2573.5,2573.1,0.38857]
[1727051694005,3.2078,2573.4,2573.1,0.38857]
[1727051695415,0.38855,2573.3,2573.0,1.01626486]
[1727051695710,0.3848,2573.3,2573.0,0.38858]
[1727051695917,0.3848,2573.3,2572.9,1.01626486]
[1727051696117,0.3848,2573.3,2573.2,0.38856]
[1727051696914,4.2712,2573.3,2572.7,4.22406486]
[1727051697106,0.38856,2573.2,2572.9,0.3886]
[1727051697520,3.2078,2573.1,2572.5,1.40492486]
[1727051697724,3.2078,2573.1,2572.6,0.38864]
[1727051697725,0.38861,2572.9,2572.6,0.38864]
[1727051697930,0.3847,2572.8,2572.6,0.38864]
[1727051698331,0.3847,2572.8,2572.7,0.38863]
[1727051699326,0.3847,2572.8,2572.5,1.01626486]
[1727051699626,3.5925,2572.8,2572.5,1.01626486]
[1727051699927,0.38869,2572.3,2572.1,1.01626486]
[1727051700118,0.3817,2572.2,2572.0,1.01626486]
[1727051700319,0.77041,2572.2,2571.9,1.40501486]
[1727051700530,0.77041,2572.2,2571.8,1.52439729]
[1727051700531,0.3817,2572.2,2572.1,0.38872]
[1727051700824,0.3817,2572.2,2572.0,0.38873]
[1727051701026,0.38873,2572.1,2571.8,1.01626486]
[1727051701227,0.38873,2572.1,2571.7,12.67219729]
[1727051701228,0.3817,2572.2,2571.7,12.16406486]
[1727051701422,3.98094,2572.7,2572.0,5.8178]
[1727051701632,0.3817,2572.6,2572.4,0.38868]
[1727051701833,0.3817,2572.6,2572.3,0.38869]
[1727051702528,0.3817,2572.6,2572.2,1.01626486]
[1727051702728,0.3817,2572.6,2572.5,0.38866]
[1727051703632,0.3817,2572.6,2572.4,2.61]
[1727051703826,0.3817,2572.6,2572.4,2.99867]
[1727051704026,0.38867,2572.5,2572.3,1.01626486]
[1727051704222,0.38868,2572.4,2572.2,1.01626486]
[1727051704720,0.3817,2572.6,2572.2,1.01626486]
[1727051704721,0.38867,2572.5,2572.2,1.01626486]
[1727051704920,0.38869,2572.3,2572.2,1.01626486]
[1727051705121,0.38869,2572.3,2572.0,4.13439729]
[1727051705122,0.38871,2572.2,2572.0,1.01626486]
[1727051705322,0.77571,2572.2,2572.0,1.01626486]
[1727051705932,0.38872,2572.1,2572.0,1.01626486]
[1727051706240,0.38875,2571.9,2571.8,1.01626486]
[1727051706427,0.38877,2571.8,2571.7,1.01626486]
[1727051706624,0.38878,2571.7,2571.5,1.01626486]
[1727051707042,3.59658,2571.8,2571.5,1.40507486]
[1727051707337,3.2078,2571.8,2571.7,4.01504486]
[1727051707539,0.4096,2572.0,2571.7,3.62626486]
[1727051707729,0.38878,2571.7,2571.6,1.01626486]
[1727051708034,0.38878,2571.7,2571.5,1.52439729]
[1727051708035,3.6174,2572.0,2571.5,1.01626486]
[1727051708334,0.3888,2571.6,2571.4,1.01626486]
[1727051708530,3.6174,2572.0,2571.4,1.01626486]
[1727051708531,0.38881,2571.5,2571.4,1.01626486]
[1727051708728,0.3748,2571.5,2571.3,1.01626486]
[1727051708928,0.3809,2571.4,2571.3,1.01626486]
[1727051709132,0.7557,2571.4,2571.2,1.01626486]
[1727051709333,1.14453,2571.4,2571.1,3.62626486]
[1727051709529,0.7557,2571.4,2571.1,3.62626486]
[1727051709732,3.2078,2571.7,2571.1,3.62626486]
[1727051709935,3.59659,2571.7,2571.3,0.38884]
[1727051710136,0.3888,2571.6,2571.2,1.40512486]
[1727051710439,3.2078,2571.7,2571.1,2.61]
[1727051711038,0.97201,2571.6,2571.1,2.61]
[1727051711235,0.38886,2571.2,2570.9,5.15126486]
[1727051711451,0.4049,2571.1,2570.8,1.01626486]
[1727051711742,0.4049,2571.1,2571.0,2.99889]
[1727051712331,3.9888,2571.4,2571.0,6.88849]
[1727051712531,3.9888,2571.4,2571.0,2.61]
[1727051712738,3.2078,2571.4,2571.0,3.62626486]
[1727051712943,3.2078,2571.4,2571.1,0.38887]
[1727051713441,3.2078,2571.4,2570.7,3.62626486]
[1727051713737,1.16985,2571.3,2570.9,0.3889]
[1727051713936,1.16985,2571.3,2570.7,3.62626486]
[1727051713937,0.395,2571.3,2571.0,2.61]
[1727051714144,3.2078,2571.4,2571.2,0.38885]
[1727051714333,3.59663,2571.4,2571.0,2.99888]
[1727051714652,0.38885,2571.3,2571.0,2.61]
[1727051714842,0.3954,2571.3,2571.0,2.61]
[1727051715237,3.2078,2571.4,2571.2,0.38885]
[1727051715437,3.2078,2571.4,2571.0,2.61]
[1727051715636,3.2078,2571.4,2571.2,0.38885]
[1727051715848,3.2078,2571.4,2571.3,2.99884]
[1727051716237,0.4049,2571.7,2571.6,0.3888]
[1727051716445,3.2078,2571.8,2571.3,6.4988]
[1727051716446,3.2078,2571.8,2571.7,0.38878]
[1727051716644,0.3954,2571.9,2571.7,0.38878]
[1727051716842,0.3954,2571.9,2571.6,0.38879]
[1727051717739,3.2078,2572.3,2571.7,2.61]
[1727051717949,3.2078,2572.3,2572.2,0.38871]
[1727051718140,0.7563,2572.5,2572.3,0.38869]
[1727051718436,0.7563,2572.5,2571.9,3.2078]
[1727051718437,0.3838,2572.5,2572.4,2.99868]
[1727051718745,3.2078,2572.8,2572.4,2.61]
[1727051719244,3.2078,2573.1,2572.4,2.61]
[1727051719634,3.2078,2573.1,2572.7,0.38863]
[1727051719952,3.2078,2573.1,2572.8,2.99861]
[1727051720341,3.2078,2573.1,2572.9,0.3886]
[1727051720646,3.2078,2573.1,2572.8,2.61]
[1727051720844,3.2078,2573.1,2572.8,2.99862]
[1727051721636,3.2078,2573.1,2573.0,0.38859]
[1727051721844,3.2078,2573.6,2573.3,0.38854]
[1727051722555,3.2078,2573.6,2573.5,2.99851]
[1727051723248,0.3921,2574.0,2573.8,0.38846]
[1727051723446,0.3921,2574.0,2573.8,2.99845]
[1727051723643,0.3921,2574.0,2573.8,2.99846]
[1727051723851,3.5841,2574.4,2573.9,0.38845]
[1727051724148,3.5841,2574.4,2574.1,2.99842]
[1727051724149,3.2078,2574.4,2574.1,2.99842]
[1727051724354,3.2078,2574.4,2574.1,2.99841]
[1727051724650,3.2078,2574.4,2574.1,2.61]
[1727051724841,3.2078,2574.4,2574.1,2.99842]
[1727051725039,3.59619,2574.4,2573.8,2.99846]
[1727051725241,3.2078,2574.4,2573.8,2.99846]
[1727051725446,3.2078,2574.4,2573.8,2.61]
[1727051725645,3.2078,2574.4,2573.9,0.38844]
[1727051726449,3.59618,2574.4,2573.9,0.38844]
[1727051726643,3.2078,2574.4,2573.6,5.319]
[1727051726847,3.2078,2574.4,2573.6,8.5268]
[1727051727557,3.2078,2574.4,2574.0,0.38843]
[1727051728355,3.2078,2574.4,2573.8,2.61]
[1727051728737,3.2078,2575.3,2574.2,2.61]
[1727051728952,3.2078,2575.0,2574.5,2.61]
[1727051729147,0.38832,2574.8,2574.4,0.38837]
[1727051729344,0.38832,2574.8,2574.3,0.38839]
[1727051729549,0.38832,2574.8,2574.4,0.38837]
[1727051729740,3.2078,2575.0,2574.3,0.38839]
[1727051730048,3.2078,2574.7,2574.3,0.38839]
[1727051730251,0.38835,2574.6,2574.2,2.61]
[1727051730554,0.79535,2574.6,2574.2,2.61]
[1727051730944,0.79535,2574.6,2574.1,0.38841]
[1727051731447,0.79535,2574.6,2573.9,2.61]
[1727051731448,3.2078,2574.4,2573.9,0.38844]
[1727051731749,0.78759,2574.3,2573.9,0.38844]
[1727051731938,0.38841,2574.2,2573.8,4.135]
[1727051732143,0.38845,2574.0,2573.7,3.2078]
[1727051732549,0.407,2573.9,2573.6,2.61]
[1727051732949,0.407,2573.9,2573.7,0.38848]
[1727051733251,0.407,2573.9,2573.8,0.38847]
[1727051733551,3.2078,2574.2,2574.0,0.38843]
[1727051733849,3.2078,2574.2,2573.9,0.38844]
[1727051734347,3.2078,2574.2,2574.0,0.38844]
[1727051734540,0.3962,2574.6,2574.1,3.8848]
[1727051734541,3.2078,2574.5,2574.1,3.8848]
[1727051734744,3.2078,2574.5,2573.9,2.61]
[1727051734745,3.2078,2574.5,2574.3,2.99838]
[1727051734942,3.59617,2574.5,2573.9,2.61]
[1727051735144,3.2078,2574.5,2573.9,2.61]
[1727051735348,3.2078,2574.5,2574.4,0.38838]
[1727051735647,3.59612,2574.8,2574.5,0.38836]
[1727051736352,3.2078,2574.8,2574.6,0.38834]
[1727051736550,3.2078,2574.8,2574.5,0.38835]
[1727051736854,0.4078,2575.0,2574.8,0.38832]
[1727051737048,0.4078,2575.0,2574.8,0.38831]
[1727051737748,0.4078,2575.0,2574.9,0.3883]
[1727051738056,0.4078,2575.0,2574.9,2.9983]
[1727051738255,3.2078,2575.1,2575.0,0.38829]
[1727051738555,0.3719,2575.4,2575.3,0.38824]
[1727051738741,0.383,2575.6,2575.4,0.38822]
[1727051738946,0.383,2575.6,2575.5,0.38821]
[1727051739247,0.383,2575.6,2575.3,2.61]
[1727051739746,3.59599,2575.7,2575.3,2.99824]
[1727051739954,3.2078,2575.7,2575.3,2.61]
[1727051740347,3.2078,2575.7,2575.6,0.3882]
[1727051740551,3.2078,2576.1,2575.6,2.61]
[1727051740750,3.2078,2576.1,2575.8,0.38817]
[1727051740955,3.59587,2576.5,2575.8,0.38817]
[1727051741152,3.2078,2576.5,2575.8,4.27057]
[1727051741453,0.3881,2576.3,2575.8,4.27057]
[1727051741657,0.3881,2576.3,2575.6,5.8178]
[1727051741658,3.59592,2576.1,2575.6,5.8178]
[1727051741956,0.38811,2576.2,2575.8,0.38817]
[1727051742254,0.38812,2576.1,2575.7,0.38817]
[1727051742552,0.38811,2576.2,2575.8,0.38817]
[1727051742747,3.2078,2576.5,2575.6,7.925]
[1727051742944,0.38811,2576.2,2575.8,0.38817]
[1727051743150,0.3881,2576.3,2575.8,4.27057]
[1727051743349,3.59587,2576.5,2575.8,4.27057]
[1727051743652,3.2078,2576.5,2575.8,10.27057]
[1727051743851,0.38813,2576.1,2575.7,0.38817]
[1727051744157,3.2078,2576.5,2575.6,5.8178]
[1727051744344,4.17808,2576.2,2575.4,5.315]
[1727051744548,0.38815,2576.0,2575.6,0.38819]
[1727051744951,0.38815,2575.9,2575.5,0.3882]
[1727051745260,0.77465,2575.9,2575.6,0.38819]
[1727051745461,0.3865,2575.9,2575.6,0.38819]
[1727051747357,0.7886,2575.9,2575.6,0.38819]
[1727051747548,0.38818,2575.7,2575.4,0.38822]
[1727051747753,0.3882,2575.7,2575.3,2.99823]
[1727051747956,0.38821,2575.6,2575.3,2.99823]
[1727051748154,0.38822,2575.5,2575.3,2.61]
[1727051748461,0.38822,2575.5,2575.0,5.48]
[1727051748462,0.38824,2575.3,2575.0,8.47828]
[1727051748959,3.2078,2575.5,2575.0,2.61]
[1727051749258,3.6068,2575.2,2574.3,8.09]
[1727051749557,0.7712,2575.1,2574.5,0.38835]
[1727051749762,0.38831,2574.9,2574.5,0.38835]
[1727051749949,0.38834,2574.7,2574.3,8.47838]
[1727051750257,0.38833,2574.8,2574.3,2.61]
[1727051750459,0.38834,2574.7,2574.3,2.61]
[1727051750660,0.38834,2574.7,2574.3,2.99838]
[1727051750859,3.2078,2574.9,2574.3,2.61]
[1727051750860,3.59611,2574.9,2574.3,2.61]
[1727051751055,3.59611,2574.9,2574.6,0.38835]
[1727051751558,0.3883,2575.0,2574.6,0.38835]
[1727051752059,1.15948,2575.1,2574.7,0.38833]
[1727051752257,0.7712,2575.1,2574.9,0.3883]
[1727051752757,0.7712,2575.1,2574.8,0.38831]
[1727051753153,1.15948,2575.1,2574.7,0.38832]
[1727051753956,1.15948,2575.1,2574.6,2.61]
[1727051754363,1.15948,2575.1,2574.8,0.38832]
[1727051755058,0.76638,2575.1,2574.8,0.38832]
[1727051755657,0.38831,2574.9,2574.6,2.61]
[1727051755859,0.38832,2574.8,2574.6,2.61]
[1727051756059,0.38831,2574.9,2574.6,2.99834]
[1727051756257,0.3781,2575.1,2574.7,0.38833]
[1727051756463,0.3781,2575.1,2574.6,2.61]
[1727051756664,0.3781,2575.1,2574.9,0.38829]
[1727051756968,0.3781,2575.1,2574.8,0.38831]
[1727051757262,0.76638,2575.1,2574.8,0.38831]
[1727051757479,0.38829,2575.0,2574.8,0.38831]
[1727051757662,0.3781,2575.1,2574.6,2.61]
[1727051757965,0.3781,2575.1,2574.6,2.99834]
[1727051758165,0.38831,2574.9,2574.6,2.99834]
[1727051758666,0.3781,2575.1,2574.6,2.61]
[1727051758869,0.3781,2575.1,2574.9,0.38829]
[1727051759163,0.3781,2575.1,2574.6,2.61]
[1727051759164,0.3781,2575.1,2574.6,5.8178]
[1727051759466,3.2078,2575.2,2574.9,2.61]
[1727051759765,0.9705,2575.6,2574.8,3.2078]
[1727051759967,0.38823,2575.4,2574.8,2.61]
[1727051760165,0.38828,2575.1,2574.9,0.38829]
[1727051760664,0.38827,2575.2,2575.0,0.38828]
[1727051760867,3.2078,2575.5,2575.4,0.38823]
[1727051761060,0.97027,2576.3,2575.6,0.38819]
[1727051761061,3.2078,2576.3,2575.6,0.38819]
[1727051761261,1.3486,2576.4,2575.4,2.61]
[1727051761262,3.2078,2576.0,2575.4,2.61]
[1727051761459,0.38823,2575.4,2575.1,9.28426]
[1727051761960,0.3784,2575.6,2575.1,2.61]
[1727051762154,3.2078,2575.4,2575.1,2.61]
[1727051762364,3.2078,2575.4,2575.1,2.99826]
[1727051762365,0.38823,2575.4,2575.1,2.99826]
[1727051762762,0.3784,2575.6,2575.1,2.61]
[1727051762955,0.7666,2575.6,2575.1,2.61]
[1727051763156,0.38822,2575.5,2575.2,0.38825]
[1727051763658,3.2078,2575.4,2574.8,12.1028]
[1727051763964,3.2078,2575.4,2574.8,2.61]
[1727051763965,3.2078,2575.3,2574.8,2.61]
[1727051764269,3.2078,2575.3,2574.9,0.3883]
[1727051764270,0.38826,2575.2,2574.9,0.3883]
[1727051764772,0.38826,2575.2,2574.8,2.99831]
[1727051764959,0.38829,2575.0,2574.8,2.61]
[1727051765360,0.3921,2574.9,2574.8,2.61]
[1727051766169,0.3921,2574.9,2574.8,2.99832]
[1727051766568,3.5942,2575.3,2575.0,0.38827]
[1727051766763,3.5942,2575.3,2574.4,10.46372]
[1727051766764,3.5942,2575.3,2575.1,2.61]
[1727051766969,0.77466,2575.3,2575.1,2.61]
[1727051767168,0.3883,2575.0,2574.8,2.61]
[1727051767470,3.5942,2575.3,2574.4,2.61]
[1727051767663,0.3838,2574.9,2574.4,2.61]
[1727051767868,0.3838,2574.9,2574.2,4.135]
[1727051768167,0.38836,2574.5,2574.2,4.5234]
[1727051768361,0.38838,2574.4,2574.1,2.99841]
[1727051768568,0.7542,2574.4,2574.2,0.3884]
[1727051768766,0.7542,2574.4,2574.3,0.38839]
[1727051768968,0.7542,2574.4,2574.1,2.99841]
[1727051769176,0.7542,2574.4,2574.2,0.3884]
[1727051769869,3.2078,2575.6,2574.5,0.97091]
[1727051770068,3.2078,2575.6,2575.3,0.38824]
[1727051770069,0.3888,2575.5,2575.3,0.38824]
[1727051770270,0.3888,2575.5,2575.4,0.38823]
[1727051770467,0.3888,2575.5,2575.4,2.99823]
[1727051771771,3.2078,2575.9,2575.4,12.4932]
[1727051771966,3.2078,2575.9,2575.4,2.61]
[1727051772177,0.3888,2575.8,2575.4,2.61]
[1727051772675,0.77697,2575.8,2575.4,2.99822]
[1727051772878,0.3888,2575.8,2575.7,0.38818]
[1727051773171,0.3888,2575.8,2575.6,0.38819]
[1727051774181,0.3888,2575.8,2575.5,0.3882]
[1727051774472,0.3888,2575.8,2575.7,0.38818]
[1727051775066,0.38813,2576.1,2575.8,0.38816]
[1727051775265,0.79703,2576.1,2575.8,0.38816]
[1727051775471,0.79703,2576.1,2575.4,6.83406486]
[1727051775472,0.4089,2576.1,2575.4,6.83406486]
[1727051775869,0.4089,2576.1,2575.9,0.38815]
[1727051776167,0.4089,2576.1,2575.8,2.61]
[1727051776168,0.38815,2575.9,2575.8,2.61]
[1727051776368,0.38819,2575.7,2575.3,1.01626486]
[1727051776577,3.2078,2575.9,2575.3,1.01626486]
[1727051776578,0.37,2575.6,2575.3,1.01626486]
[1727051776771,0.37,2575.6,2575.4,0.38821]
[1727051777966,0.37,2575.6,2575.5,0.38821]
[1727051778782,0.37,2575.6,2575.4,0.38822]
[1727051778980,3.5778,2575.6,2575.0,1.01626486]
[1727051779181,3.2078,2575.2,2574.8,3.62626486]
[1727051779482,3.2078,2575.2,2574.6,1.01626486]
[1727051779483,0.97072,2575.0,2574.6,1.01626486]
[1727051779677,0.97072,2575.0,2574.5,4.13439729]
[1727051779678,0.38833,2574.8,2574.5,4.01462486]
[1727051779979,0.3906,2574.7,2574.5,4.01462486]
[1727051780174,0.3906,2574.7,2574.6,0.38835]
[1727051780372,0.3906,2574.7,2574.6,1.40461486]
[1727051780589,0.77893,2574.7,2574.6,1.01626486]
[1727051780785,0.3906,2574.7,2574.5,3.62626486]
[1727051781076,0.3906,2574.7,2574.6,0.38835]
[1727051781480,0.3906,2574.7,2574.5,4.01461486]
[1727051781682,0.3906,2574.7,2574.5,3.62626486]
[1727051781873,0.38836,2574.5,2574.4,1.01626486]
[1727051782075,0.38836,2574.5,2574.3,1.01626486]
[1727051782277,0.38837,2574.5,2574.3,1.01626486]
[1727051782581,0.38836,2574.5,2574.2,1.01626486]
[1727051783082,0.38838,2574.4,2574.2,1.01626486]
[1727051783280,0.38837,2574.5,2574.2,1.40466486]
[1727051783478,0.7682,2574.6,2574.4,0.38837]
[1727051783672,0.3733,2574.6,2574.4,1.40463486]
[1727051783872,0.3733,2574.6,2574.4,0.38837]
[1727051784177,0.3733,2574.6,2574.3,1.40464486]
[1727051784380,0.3733,2574.6,2574.2,1.52439729]
[1727051784381,3.2078,2574.4,2574.2,1.01626486]
[1727051784582,0.3884,2574.3,2574.1,1.01626486]
[1727051785079,3.59618,2574.4,2574.1,1.40467486]
[1727051785284,3.2078,2574.4,2574.3,0.38839]
[1727051785479,3.2078,2574.4,2574.2,0.3884]
[1727051786383,4.2732,2574.3,2574.0,1.40470486]
[1727051786576,3.59618,2574.4,2574.1,0.38842]
[1727051786886,3.59618,2574.4,2574.1,0.38841]
[1727051787087,3.59618,2574.4,2574.0,1.01626486]
[1727051787088,3.2078,2574.4,2574.3,0.38839]
[1727051788477,3.2078,2574.4,2574.3,1.40465486]
[1727051788784,3.59604,2575.3,2574.9,0.38829]
[1727051788975,3.2078,2575.3,2575.0,0.38828]
[1727051789371,3.2078,2575.3,2575.0,1.0140977]
[1727051789578,3.2078,2575.3,2575.2,0.38826]
[1727051789883,1.1912,2575.6,2575.4,0.38821]
[1727051790282,0.97023,2576.3,2575.2,3.6240977]
[1727051790476,0.38814,2576.0,2575.6,0.38819]
[1727051791189,0.38815,2575.9,2575.5,0.3882]
[1727051791393,3.9909,2576.1,2575.2,3.6240977]
[1727051791697,3.99927,2575.8,2575.3,0.38823]